{"text_format":"1","workbook":"xlsx","n_sheets":3,"sheets":["Тарифы","Таблица (исх данные)","Модель стоимости нарядов"],"not_rendered":{"charts":0,"images":0,"macros":1,"external_links":0,"defined_names":2,"comments":0,"pivot_tables":0},"unopened":[],"bounds":{"document_bytes":16777216,"sheet_cells":100000,"rows_first":2000,"rows_last":500,"rows_between":2000,"halvings":0,"cell_chars":16384,"cell_head_chars":4096},"cells_cut":0,"cells_raw":0,"read":"whole","date_system":"1900"}

{"sheet":"Тарифы","index":0,"n_rows":15,"n_cols":7,"rows_kept":15,"cut":false,"hidden":false,"merged":[[0,2,2,2],[0,3,2,3],[0,4,0,6]]}
["Виды операций",null,"ФИО","Тариф операции,руб./сут","коэффициент переработки"]
["01 -обработка цилиндрических поверхностей",null,null,null,"1 операция","2 операции","3 операции"]
["02 - обработка конических деталей",null,null,null,1,1.1000000000000001,1.2]
["03 - фасонное точение",null,"Голотнев М.С.",3000,{"$f":"D4*E$3","v":3000},3300.0000000000005,3960.0000000000005]
["04 - торцовка заготовок",null,"Данилов Д.А.",4000,4000,4400,5280]
["05 - вытачивание канавок",null,"Балашин В.Р.",4000,4000,4400,5280]
["06 - сверление отверстий",null,"Брандов В.А.",3000,3000,3300.0000000000005,3960.0000000000005]
["07 - развертывание отверстий",null,"Саратин Н.С.",3000,3000,3300.0000000000005,3960.0000000000005]
["08 - зенкерование отверстий",null,"Фредин Ю.Я.",2000,2000,2200,2640]
["09 - токарно-бесцентровая операция",null,"Рублёв Д.Р.",3000,3000,3300.0000000000005,3960.0000000000005]
["10 - токарно-карусельная операция",null,"Барниев М.Ю.",3000,3000,3300.0000000000005,3960.0000000000005]
["11 - токарно-отрезная операция",null,"Соломатин Е.С.",2500,2500,2750,3300]
["12 - токарно-револьверная операция"]
["13 - токарно-винторезная операция"]
["14 - прочие операции"]

{"sheet":"Таблица (исх данные)","index":1,"n_rows":29,"n_cols":22,"rows_kept":29,"cut":false,"hidden":false,"merged":[]}
["ИСХОДНЫЕ ДАННЫЕ ФИО / ДАТА / ОПЕРАЦИЯ"]
["ФИО работника","2024-02-01","2024-02-02","2024-02-03","2024-02-04","2024-02-05","2024-02-06","2024-02-07","2024-02-08","2024-02-09","2024-02-10","2024-02-11","2024-02-12","2024-02-13","2024-02-14","2024-02-15","2024-02-16","2024-02-17","2024-02-18","2024-02-19","2024-02-20","2024-02-21"]
["Голотнев М.С.","01 -обработка цилиндрических поверхностей","13 - токарно-винторезная операция",null,null,"01 -обработка цилиндрических поверхностей","12 - токарно-револьверная операция","12 - токарно-револьверная операция","12 - токарно-револьверная операция","04 - торцовка заготовок",null,null,"04 - торцовка заготовок","03 - фасонное точение","09 - токарно-бесцентровая операция","09 - токарно-бесцентровая операция","09 - токарно-бесцентровая операция",null,null,"04 - торцовка заготовок","04 - торцовка заготовок","03 - фасонное точение"]
["Голотнев М.С.","01 -обработка цилиндрических поверхностей","02 - обработка конических деталей",null,null,"01 -обработка цилиндрических поверхностей",null,null,null,null,null,null,null,null,null,null,"13 - токарно-винторезная операция",null,null,null,"03 - фасонное точение","10 - токарно-карусельная операция"]
["Голотнев М.С."]
["Данилов Д.А.","06 - сверление отверстий",null,null,null,"04 - торцовка заготовок",null,null,null,null,null,null,"03 - фасонное точение","07 - развертывание отверстий","03 - фасонное точение","03 - фасонное точение","03 - фасонное точение",null,null,"03 - фасонное точение","10 - токарно-карусельная операция","10 - токарно-карусельная операция"]
["Данилов Д.А.",null,null,null,null,"04 - торцовка заготовок"]
["Данилов Д.А."]
["Балашин В.Р.","01 - обработка цилиндрических поверхностей","01 - обработка цилиндрических поверхностей",null,null,"01 - обработка цилиндрических поверхностей","01 - обработка цилиндрических поверхностей","01 - обработка цилиндрических поверхностей","03 - фасонное точение","03 - фасонное точение",null,null,"03 - фасонное точение","03 - фасонное точение","03 - фасонное точение","03 - фасонное точение","03 - фасонное точение",null,null,"09 - токарно-бесцентровая операция"]
["Балашин В.Р.","02 - обработка конических деталей","02 - обработка конических деталей",null,null,"02 - обработка конических деталей"]
["Балашин В.Р."]
["Брандов В.А.","02 - обработка конических деталей","02 - обработка конических деталей",null,null,"02 - обработка конических деталей","02 - обработка конических деталей","02 - обработка конических деталей","02 - обработка конических деталей","06 - сверление отверстий",null,null,"01 - обработка цилиндрических поверхностей","01 - обработка цилиндрических поверхностей","01 - обработка цилиндрических поверхностей","03 - фасонное точение","05 - вытачивание канавок",null,null,"05 - вытачивание канавок","05 - вытачивание канавок","05 - вытачивание канавок"]
["Брандов В.А."]
["Брандов В.А."]
["Саратин Н.С.","08 - зенкерование отверстий","08 - зенкерование отверстий",null,null,"08 - зенкерование отверстий","08 - зенкерование отверстий","07 - развертывание отверстий","07 - развертывание отверстий","07 - развертывание отверстий"]
["Саратин Н.С."]
["Саратин Н.С."]
["Фредин Ю.Я.","08 - зенкерование отверстий","08 - зенкерование отверстий",null,null,"12 - токарно-револьверная операция","12 - токарно-револьверная операция","12 - токарно-револьверная операция","10 - токарно-карусельная операция","11 - токарно-отрезная операция",null,null,"11 - токарно-отрезная операция","11 - токарно-отрезная операция","11 - токарно-отрезная операция","11 - токарно-отрезная операция","11 - токарно-отрезная операция",null,null,null,"11 - токарно-отрезная операция","11 - токарно-отрезная операция"]
["Фредин Ю.Я.",null,null,null,null,null,null,null,null,null,null,null,null,"11 - токарно-отрезная операция",null,null,null,null,null,null,null,"09 - токарно-бесцентровая операция"]
["Фредин Ю.Я."]
["Рублёв Д.Р.","01 - обработка цилиндрических поверхностей","01 - обработка цилиндрических поверхностей",null,null,"01 - обработка цилиндрических поверхностей","01 - обработка цилиндрических поверхностей","01 - обработка цилиндрических поверхностей","03 - фасонное точение","03 - фасонное точение",null,null,"03 - фасонное точение","03 - фасонное точение","03 - фасонное точение","03 - фасонное точение","03 - фасонное точение",null,null,"09 - токарно-бесцентровая операция","09 - токарно-бесцентровая операция","05 - вытачивание канавок"]
["Рублёв Д.Р."]
["Рублёв Д.Р."]
["Барниев М.Ю.","14 - прочие операции","14 - прочие операции",null,null,"14 - прочие операции","10 - токарно-карусельная операция","01 - обработка цилиндрических поверхностей","01 - обработка цилиндрических поверхностей","01 - обработка цилиндрических поверхностей",null,null,"14 - прочие операции","14 - прочие операции","03 - фасонное точение","03 - фасонное точение","03 - фасонное точение",null,null,"03 - фасонное точение","03 - фасонное точение","03 - фасонное точение"]
["Барниев М.Ю.",null,null,null,null,null,null,null,null,null,null,null,null,null,null,null,null,null,null,null,"04 - торцовка заготовок"]
["Барниев М.Ю."]
["Соломатин Е.С.","14 - прочие операции","14 - прочие операции",null,null,"02 - обработка конических деталей","10 - токарно-карусельная операция","02 - обработка конических деталей","02 - обработка конических деталей","06 - сверление отверстий",null,null,"11 - токарно-отрезная операция","11 - токарно-отрезная операция","01 - обработка цилиндрических поверхностей","01 - обработка цилиндрических поверхностей","01 - обработка цилиндрических поверхностей",null,null,"11 - токарно-отрезная операция","11 - токарно-отрезная операция","03 - фасонное точение"]
["Соломатин Е.С.","14 - прочие операции","14 - прочие операции",null,null,"14 - прочие операции","14 - прочие операции","14 - прочие операции"]
["Соломатин Е.С."]

{"sheet":"Модель стоимости нарядов","index":2,"n_rows":136,"n_cols":5,"rows_kept":136,"cut":false,"hidden":false,"merged":[]}
[]
[null,"Автоматизация оценки стоимости работ с помощью пользовательской функции MS Excel"]
[null,"ФИО","Операции","Стоимость операций за период, руб.","Количество операций за период, ед."]
[1,"Голотнев М.С.","01 -обработка цилиндрических поверхностей",{"$f":"SumOrdersByPerson(B4,C4)","v":6600.0000000000009},{"$f":"OrdersQtyByPerson(B4,C4)","v":4}]
[2,"Голотнев М.С.","02 - обработка конических деталей",3000,{"$f":"OrdersQtyByPerson(B5,C5)","v":1}]
[3,"Голотнев М.С.","03 - фасонное точение",9000,{"$f":"OrdersQtyByPerson(B6,C6)","v":3}]
[4,"Голотнев М.С.","04 - торцовка заготовок",12000,4]
[5,"Голотнев М.С.","05 - вытачивание канавок",0,0]
[6,"Голотнев М.С.","06 - сверление отверстий",0,0]
[7,"Голотнев М.С.","07 - развертывание отверстий",0,0]
[8,"Голотнев М.С.","08 - зенкерование отверстий",0,0]
[9,"Голотнев М.С.","09 - токарно-бесцентровая операция",9000,3]
[10,"Голотнев М.С.","10 - токарно-карусельная операция",3000,1]
[11,"Голотнев М.С.","11 - токарно-отрезная операция",0,0]
[12,"Голотнев М.С.","12 - токарно-револьверная операция",9000,3]
[13,"Голотнев М.С.","13 - токарно-винторезная операция",6000,2]
[]
[1,"Данилов Д.А.","01 -обработка цилиндрических поверхностей",{"$f":"SumOrdersByPerson(B18,C18)","v":0},0]
[2,"Данилов Д.А.","02 - обработка конических деталей",0,0]
[3,"Данилов Д.А.","03 - фасонное точение",20000,5]
[4,"Данилов Д.А.","04 - торцовка заготовок",4400,{"$f":"OrdersQtyByPerson(B21,C21)","v":2}]
[5,"Данилов Д.А.","05 - вытачивание канавок",0,0]
[6,"Данилов Д.А.","06 - сверление отверстий",4000,1]
[7,"Данилов Д.А.","07 - развертывание отверстий",4000,1]
[8,"Данилов Д.А.","08 - зенкерование отверстий",0,0]
[9,"Данилов Д.А.","09 - токарно-бесцентровая операция",0,0]
[10,"Данилов Д.А.","10 - токарно-карусельная операция",8000,2]
[11,"Данилов Д.А.","11 - токарно-отрезная операция",0,0]
[12,"Данилов Д.А.","12 - токарно-револьверная операция",0,0]
[13,"Данилов Д.А.","13 - токарно-винторезная операция",0,0]
[14,"Данилов Д.А.","14 - прочие операции",0,0]
[]
[1,"Балашин В.Р.","01 -обработка цилиндрических поверхностей",{"$f":"SumOrdersByPerson(B33,C33)","v":0},0]
[2,"Балашин В.Р.","02 - обработка конических деталей",12000,3]
[3,"Балашин В.Р.","03 - фасонное точение",28000,7]
[4,"Балашин В.Р.","04 - торцовка заготовок",0,0]
[5,"Балашин В.Р.","05 - вытачивание канавок",0,0]
[6,"Балашин В.Р.","06 - сверление отверстий",0,0]
[7,"Балашин В.Р.","07 - развертывание отверстий",0,0]
[8,"Балашин В.Р.","08 - зенкерование отверстий",0,0]
[9,"Балашин В.Р.","09 - токарно-бесцентровая операция",4000,1]
[10,"Балашин В.Р.","10 - токарно-карусельная операция",0,0]
[11,"Балашин В.Р.","11 - токарно-отрезная операция",0,0]
[12,"Балашин В.Р.","12 - токарно-револьверная операция",0,0]
[13,"Балашин В.Р.","13 - токарно-винторезная операция",0,0]
[14,"Балашин В.Р.","14 - прочие операции",0,0]
[]
[1,"Брандов В.А.","01 -обработка цилиндрических поверхностей",{"$f":"SumOrdersByPerson(B48,C48)","v":0},0]
[2,"Брандов В.А.","02 - обработка конических деталей",18000,6]
[3,"Брандов В.А.","03 - фасонное точение",3000,1]
[4,"Брандов В.А.","04 - торцовка заготовок",0,0]
[5,"Брандов В.А.","05 - вытачивание канавок",12000,4]
[6,"Брандов В.А.","06 - сверление отверстий",3000,1]
[7,"Брандов В.А.","07 - развертывание отверстий",0,0]
[8,"Брандов В.А.","08 - зенкерование отверстий",0,0]
[9,"Брандов В.А.","09 - токарно-бесцентровая операция",0,0]
[10,"Брандов В.А.","10 - токарно-карусельная операция",0,0]
[11,"Брандов В.А.","11 - токарно-отрезная операция",0,0]
[12,"Брандов В.А.","12 - токарно-револьверная операция",0,0]
[13,"Брандов В.А.","13 - токарно-винторезная операция",0,0]
[14,"Брандов В.А.","14 - прочие операции",0,0]
[]
[1,"Саратин Н.С.","01 -обработка цилиндрических поверхностей",{"$f":"SumOrdersByPerson(B63,C63)","v":0},0]
[2,"Саратин Н.С.","02 - обработка конических деталей",0,0]
[3,"Саратин Н.С.","03 - фасонное точение",0,0]
[4,"Саратин Н.С.","04 - торцовка заготовок",0,0]
[5,"Саратин Н.С.","05 - вытачивание канавок",0,0]
[6,"Саратин Н.С.","06 - сверление отверстий",0,0]
[7,"Саратин Н.С.","07 - развертывание отверстий",9000,{"$f":"OrdersQtyByPerson(B69,C69)","v":3}]
[8,"Саратин Н.С.","08 - зенкерование отверстий",12000,4]
[9,"Саратин Н.С.","09 - токарно-бесцентровая операция",0,0]
[10,"Саратин Н.С.","10 - токарно-карусельная операция",0,0]
[11,"Саратин Н.С.","11 - токарно-отрезная операция",0,0]
[12,"Саратин Н.С.","12 - токарно-револьверная операция",0,0]
[13,"Саратин Н.С.","13 - токарно-винторезная операция",0,0]
[14,"Саратин Н.С.","14 - прочие операции",0,0]
[]
[1,"Фредин Ю.Я.","01 -обработка цилиндрических поверхностей",{"$f":"SumOrdersByPerson(B78,C78)","v":0},0]
[2,"Фредин Ю.Я.","02 - обработка конических деталей",0,0]
[3,"Фредин Ю.Я.","03 - фасонное точение",0,0]
[4,"Фредин Ю.Я.","04 - торцовка заготовок",0,0]
[5,"Фредин Ю.Я.","05 - вытачивание канавок",0,0]
[6,"Фредин Ю.Я.","06 - сверление отверстий",0,0]
[7,"Фредин Ю.Я.","07 - развертывание отверстий",0,0]
[8,"Фредин Ю.Я.","08 - зенкерование отверстий",4000,2]
[9,"Фредин Ю.Я.","09 - токарно-бесцентровая операция",2000,1]
[10,"Фредин Ю.Я.","10 - токарно-карусельная операция",2000,1]
[11,"Фредин Ю.Я.","11 - токарно-отрезная операция",16200,9]
[12,"Фредин Ю.Я.","12 - токарно-револьверная операция",6000,3]
[13,"Фредин Ю.Я.","13 - токарно-винторезная операция",0,0]
[14,"Фредин Ю.Я.","14 - прочие операции",0,0]
[]
[1,"Рублёв Д.Р.","01 -обработка цилиндрических поверхностей",{"$f":"SumOrdersByPerson(B93,C93)","v":0},0]
[2,"Рублёв Д.Р.","02 - обработка конических деталей",0,0]
[3,"Рублёв Д.Р.","03 - фасонное точение",21000,7]
[4,"Рублёв Д.Р.","04 - торцовка заготовок",0,0]
[5,"Рублёв Д.Р.","05 - вытачивание канавок",3000,1]
[6,"Рублёв Д.Р.","06 - сверление отверстий",0,0]
[7,"Рублёв Д.Р.","07 - развертывание отверстий",0,0]
[8,"Рублёв Д.Р.","08 - зенкерование отверстий",0,0]
[9,"Рублёв Д.Р.","09 - токарно-бесцентровая операция",6000,2]
[10,"Рублёв Д.Р.","10 - токарно-карусельная операция",0,0]
[11,"Рублёв Д.Р.","11 - токарно-отрезная операция",0,0]
[12,"Рублёв Д.Р.","12 - токарно-револьверная операция",0,0]
[13,"Рублёв Д.Р.","13 - токарно-винторезная операция",0,0]
[14,"Рублёв Д.Р.","14 - прочие операции",0,0]
[]
[1,"Барниев М.Ю.","01 -обработка цилиндрических поверхностей",{"$f":"SumOrdersByPerson(B108,C108)","v":0},0]
[2,"Барниев М.Ю.","02 - обработка конических деталей",0,0]
[3,"Барниев М.Ю.","03 - фасонное точение",18000,6]
[4,"Барниев М.Ю.","04 - торцовка заготовок",3000,1]
[5,"Барниев М.Ю.","05 - вытачивание канавок",0,0]
[6,"Барниев М.Ю.","06 - сверление отверстий",0,0]
[7,"Барниев М.Ю.","07 - развертывание отверстий",0,0]
[8,"Барниев М.Ю.","08 - зенкерование отверстий",0,0]
[9,"Барниев М.Ю.","09 - токарно-бесцентровая операция",0,0]
[10,"Барниев М.Ю.","10 - токарно-карусельная операция",3000,1]
[11,"Барниев М.Ю.","11 - токарно-отрезная операция",0,0]
[12,"Барниев М.Ю.","12 - токарно-револьверная операция",0,0]
[13,"Барниев М.Ю.","13 - токарно-винторезная операция",0,0]
[14,"Барниев М.Ю.","14 - прочие операции",15000,5]
[]
[1,"Соломатин Е.С.","01 -обработка цилиндрических поверхностей",{"$f":"SumOrdersByPerson(B123,C123)","v":0},0]
[2,"Соломатин Е.С.","02 - обработка конических деталей",7500,3]
[3,"Соломатин Е.С.","03 - фасонное точение",2500,1]
[4,"Соломатин Е.С.","04 - торцовка заготовок",0,0]
[5,"Соломатин Е.С.","05 - вытачивание канавок",0,0]
[6,"Соломатин Е.С.","06 - сверление отверстий",2500,1]
[7,"Соломатин Е.С.","07 - развертывание отверстий",0,0]
[8,"Соломатин Е.С.","08 - зенкерование отверстий",0,0]
[9,"Соломатин Е.С.","09 - токарно-бесцентровая операция",0,0]
[10,"Соломатин Е.С.","10 - токарно-карусельная операция",2500,1]
[11,"Соломатин Е.С.","11 - токарно-отрезная операция",10000,{"$f":"OrdersQtyByPerson(B133,C133)","v":4}]
[12,"Соломатин Е.С.","12 - токарно-револьверная операция",0,{"$f":"OrdersQtyByPerson(B134,C134)","v":0}]
[13,"Соломатин Е.С.","13 - токарно-винторезная операция",0,{"$f":"OrdersQtyByPerson(B135,C135)","v":0}]
[14,"Соломатин Е.С.","14 - прочие операции",13000,{"$f":"OrdersQtyByPerson(B136,C136)","v":7}]